[Event "Smuk Skak GM Tournament 2024"]
[Site "Skanderborg"]
[Date "2024.08.17"]
[Round "1.1"]
[White "Pajeken, Jakob Leon"]
[Black "Aczel, Gergely"]
[Result "1/2-1/2"]
[ECO "B12"]
[WhiteElo "2416"]
[BlackElo "2485"]
[Annotator "TA"]
[PlyCount "156"]
[EventDate "2024.08.11"]
[EventType "tourn"]
[EventCountry "DEN"]
[SourceTitle "playchess.com"]
[Source "ChessBase"]
[SourceQuality "1"]
[TimeControl "40/5400+30:1800+30"]

{[%evp 63,156,-79,-70,-163,-152,-150,-170,-154,-20,-14,-20,-29,-21,-27,-36,-36,-36,-54,-52,-60,-51,-51,-51,-70,-77,-77,-80,-80,-80,-77,-77,-70,-77,-98,-91,-137,-141,-157,-156,-131,-152,-140,-75,-82,-106,-186,-186,-183,-184,-141,-135,-47,-41,-56,-172,-232,0,0,0,-208,-8,-8,-8,-8,-8,-8,0,0,0,0,0,0,0,0,0,0,0,0,0,0,0,0,0,0,0,0,0,0,0,0,0,0,0,0,0]} 1. e4 c6 {[%emt 0:00:17]} 2. d4 {[%emt 0:00:24]} d5 {[%emt 0:00:04]} 3. e5 {[%emt 0:00:05]} c5 {[%emt 0:00:05]} 4. Nf3 {[%emt 0:00:04]} cxd4 {[%emt 0:00:06]} 5. Qxd4 {[%emt 0:00:03]} Nc6 {[%emt 0:00:07]} 6. Qf4 {[%emt 0:00:02] B12: Caro-Kann: Advance Variation.} Nh6 {[%emt 0:00:07]} 7. Nc3 {[%emt 0:07:46]} g6 {[%emt 0:00:08]} 8. Bb5 {[%emt 0:14:27]} a6 $146 {[%emt 0:00:08]} ({Predecessor:} 8... Nf5 9. g4 d4 10. Bxc6+ bxc6 11. Ne2 Nh6 12. Nfxd4 Bxg4 13. f3 Bd7 14. Bd2 Qb8 {1-0 Eckhardt,G-Faust,D Rangliste 1900-2200 22546 2020}) 9. Bxc6+ {[%emt 0:04:13]} bxc6 {[%emt 0:00:04]} 10. Be3 {[%emt 0:03:16]} Rb8 {[%emt 0:19:16]} 11. O-O {[%emt 0:16:38]} Bg7 {[%emt 0:06:27]} 12. Qa4 {[%emt 0:03:51]} O-O {[%emt 0:01:17]} 13. Nd4 {[%emt 0:06:21]} Bd7 {[%emt 0:05:10]} 14. Bxh6 {[%emt 0:07:24]} Bxh6 {[%emt 0:01:29]} 15. Nxc6 {[%emt 0:01:26]} Bxc6 {[%emt 0:02:47]} 16. Qxc6 {[%emt 0:00:11]} e6 {[%emt 0:01:58]} 17. Rab1 {[%emt 0:04:21]} Rb6 {[%emt 0:04:34]} 18. Qc5 {[%emt 0:09:10]} Qb8 {[%emt 0:00:39]} 19. Na4 {[%emt 0:06:26]} Rb5 {[%emt 0:25:36]} 20. Qd6 {[%emt 0:01:24]} Qxd6 {[%emt 0:10:21]} 21. exd6 {[%emt 0:00:02]} Rd8 {[%emt 0:00:19]} 22. Rfd1 {[%emt 0:00:32]} Bf8 {[%emt 0:05:28]} 23. Rbc1 {[%emt 0:03:19]} Bxd6 {[%emt 0:07:21]} 24. g3 {[%emt 0:00:46]} Ra5 {[%emt 0:03:33]} 25. b3 {[%emt 0:00:42]} Ba3 {[%emt 0:00:12]} 26. Rb1 {[%emt 0:00:04]} Rc8 {[%emt 0:00:11]} 27. Rd2 {[%emt 0:02:21]} Rc6 {[%emt 0:02:27]} 28. Rbd1 {[%emt 0:01:03]} Rb5 {[%emt 0:00:56]} 29. Kf1 {[%emt 0:01:29]} Rb8 {[%emt 0:00:19]} 30. c3 {[%emt 0:01:00]} Be7 {[%emt 0:00:43]} 31. Rd3 {[%emt 0:01:36]} Rbc8 {[%emt 0:00:34]} 32. Rf3 {[%emt 0:02:22]} Kg7 {[%emt 0:00:31]} 33. c4 {[%emt 0:01:51]} ({White should try} 33. h4 $15) 33... dxc4 $19 {[%emt 0:00:16]} 34. bxc4 {[%emt 0:00:28]} Rxc4 {[%emt 0:02:40]} 35. Nb6 {[%emt 0:00:35]} Rc1 {[%emt 0:00:02]} (35... Rd8 $1 $17 {[%cal Rd8d1]} 36. Rxd8 Rc1+ 37. Kg2 Bxd8) 36. Nxc8 $11 {[%emt 0:00:28]} Rxd1+ {[%emt 0:00:05]} 37. Ke2 {[%emt 0:00:06]} Rd7 {[%emt 0:00:05]} 38. Nxe7 {[%emt 0:00:13]} Rxe7 {[%emt 0:00:09]} 39. Ra3 {[%emt 0:00:40]} Ra7 {[%emt 0:00:07]} 40. h4 {[%emt 0:00:44]} a5 {[%emt 0:01:36]} 41. Ke3 {[%emt 0:31:35]} Kf6 {[%emt 0:11:53]} 42. Rc3 {[%emt 0:00:00]} Rd7 {[%emt 0:01:37]} 43. Rc5 {[%emt 0:00:00]} Rd5 $1 {[%emt 0:00:21]} 44. Rc7 {[%emt 0:00:00]} Re5+ {[%emt 0:02:57]} 45. Kf3 {[%emt 0:00:00]} h6 {[%emt 0:06:57]} 46. a4 {[%emt 0:00:00]} g5 {[%emt 0:00:23]} 47. hxg5+ {[%emt 0:00:00]} hxg5 {[%emt 0:00:05]} 48. Ra7 {[%emt 0:00:00]} Rc5 {[%emt 0:02:14]} 49. Ke3 {[%emt 0:00:00]} (49. Ke2 $142) 49... g4 $17 {[%emt 0:00:28]} 50. Kd4 {[%emt 0:00:00]} Rd5+ $1 {[%emt 0:00:31]} 51. Ke4 {[%emt 0:00:00]} Rf5 {[%emt 0:03:25]} 52. Ke3 {[%emt 0:00:00]} Kg6 $1 {[%emt 0:00:38]} 53. Ke2 {[%emt 0:00:00]} Re5+ {[%emt 0:00:21]} 54. Kd3 {[%emt 0:00:00]} (54. Kd2 $17) 54... f6 {[%emt 0:01:34]} 55. Rc7 {[%emt 0:00:00]} Rf5 {[%emt 0:01:57]} 56. Ke2 {[%emt 0:00:00] [#]} Rd5 $1 {[%emt 0:00:10]} 57. Ke3 {[%emt 0:00:00]} f5 {[%emt 0:00:27]} 58. Ra7 {[%emt 0:00:00]} Kf6 {[%emt 0:00:52]} 59. Ra6 {[%emt 0:00:00]} (59. Ke2 $142) 59... Ke5 $2 {[%emt 0:00:20]} (59... Re5+ $19 60. Kd3 Ke7) 60. Rc6 $1 $11 {[%emt 0:00:00]} Kf6 $2 {[%emt 0:00:35]} (60... Rd8 $11) 61. Ra6 $19 {[%emt 0:00:00] [#]} Ke7 $2 {[%emt 0:00:57]} (61... Re5+ $1 $19 62. Kd3 Ke7) 62. Ra7+ $1 $11 {[%emt 0:00:00]} Kd6 {[%emt 0:00:56]} 63. Ra6+ $1 {[%emt 0:00:00]} Kd7 {[%emt 0:00:22]} 64. Ra7+ $1 {[%emt 0:00:00]} Ke8 {[%emt 0:00:03]} 65. Kf4 {[%emt 0:00:00]} Kd8 {[%emt 0:00:33]} 66. Kg5 {[%emt 0:00:00]} Rd7 {[%emt 0:00:06]} 67. Rxa5 {[%emt 0:00:00]} Ke7 {[%emt 0:00:10]} 68. Kf4 {[%emt 0:00:00]} Kf6 {[%emt 0:01:03]} 69. Ke3 {[%emt 0:00:00]} Rc7 {[%emt 0:00:11]} 70. Ra8 {[%emt 0:01:19]} Rc3+ {[%emt 0:00:24]} 71. Ke2 {[%emt 0:00:05]} Ra3 {[%emt 0:00:20]} 72. a5 {[%emt 0:00:58]} Ke5 {[%emt 0:00:13]} 73. Kf1 {[%emt 0:01:12]} Ke4 {[%emt 0:01:05]} 74. Kg2 {[%emt 0:00:03]} e5 {[%emt 0:00:11]} 75. a6 {[%emt 0:00:05]} Ra1 {[%emt 0:00:18]} 76. Ra7 {[%emt 0:00:43]} Ra3 {[%emt 0:00:20]} 77. Ra8 $1 {[%emt 0:00:05]} Ra2 {[%emt 0:00:08]} 78. Ra7 {[%emt 0:00:34]} Ra3 {[%emt 0:04:23]} 1/2-1/2

[Event "Smuk Skak GM Tournament 2024"]
[Site "Skanderborg"]
[Date "2024.08.17"]
[Round "1.2"]
[White "Solodovnichenko, Yuri"]
[Black "Thybo, Jesper Sondergaard"]
[Result "0-1"]
[ECO "C44"]
[WhiteElo "2491"]
[BlackElo "2554"]
[Annotator "TA"]
[PlyCount "88"]
[EventDate "2024.08.11"]
[EventType "tourn"]
[EventCountry "DEN"]
[SourceTitle "playchess.com"]
[Source "ChessBase"]
[SourceQuality "1"]
[TimeControl "40/5400+30:1800+30"]

{[%evp 13,88,8,25,0,0,0,0,-15,-12,-27,-25,-50,-57,-69,-76,-71,-67,-78,-72,-89,-101,-87,-83,-114,-105,-147,-95,-103,-104,-121,-80,-118,-128,-174,-137,-213,-86,-268,-248,-260,-181,-375,-400,-482,-419,-657,-586,-625,-629,-622,-620,-611,-608,-583,-501,-1480,-547,-2112,-2233,-2157,-2118,-1568,-1326,-1143,-1137,-29987,-3052,-3175,-2607,-2607,-2545,-2254,-2085,-1973,-1954,-1856,-1356]} 1. e4 {[%emt 0:00:55]} e5 {[%emt 0:00:12]} 2. Nf3 {[%emt 0:00:05]} Nc6 {[%emt 0:00:07]} 3. d4 {[%emt 0:05:14]} exd4 {[%emt 0:00:16]} 4. Nxd4 {[%emt 0:00:06]} Nf6 {[%emt 0:00:23][%cal Bg8f6,Bf6d7,Bd7c5,Bc5d3][%mdl 32]} 5. Nxc6 {[%emt 0:00:28]} bxc6 {[%emt 0:00:07]} 6. Bd3 {[%emt 0:00:38]} d5 {[%emt 0:01:52]} 7. Qe2 {[%emt 0:00:09]} Be7 {[%emt 0:11:41]} 8. e5 {[%emt 0:01:16]} Nd7 {[%emt 0:01:38]} 9. O-O {[%emt 0:05:20]} O-O {[%emt 0:01:18]} 10. Bf4 {[%emt 0:03:13] The position is equal.} Nc5 {[%emt 0:10:55]} 11. Nd2 {[%emt 0:00:49]} a5 {[%emt 0:07:56]} 12. Rfe1 {[%emt 0:07:05]} a4 {[%emt 0:02:08]} 13. Nf3 {[%emt 0:04:19]} Nxd3 {[%emt 0:04:05]} 14. Qxd3 {[%emt 0:06:58]} c5 {[%emt 0:01:32] Dodges Nd4} 15. c4 {[%emt 0:01:40]} c6 {[%emt 0:02:31]} 16. Rad1 {[%emt 0:04:30]} Be6 {[%emt 0:02:51]} 17. h3 {[%emt 0:06:41]} h6 {[%emt 0:03:41]} 18. Nh2 {[%emt 0:02:51]} Rb8 {[%emt 0:01:52]} (18... dxc4 $2 19. Qg3 Qb6 20. Bxh6 $18) 19. Bc1 {[%emt 0:16:25]} Qc8 {[%emt 0:10:43]} (19... dxc4 $2 20. Qg3 Qb6 21. Bxh6 $18) (19... Rb4 $142 20. f4 Qc8 (20... Rxc4 21. f5 $11) (20... dxc4 21. Qf3 $15)) 20. Qg3 {[%emt 0:08:51]} Kh7 {[%emt 0:01:23]} 21. Ng4 {[%emt 0:00:12]} Rd8 {[%emt 0:03:38]} (21... dxc4 $6 22. Nf6+ Bxf6 (22... gxf6 23. Qf4 $11) 23. exf6 $11) 22. Qd3+ {[%emt 0:17:00]} Kh8 {[%emt 0:01:55]} 23. Ne3 {[%emt 0:00:40]} (23. Qf3 $17) 23... Rb4 {[%emt 0:04:14]} 24. g4 {[%emt 0:01:47] [#]} (24. Qe2 $17) 24... Bg5 {[%emt 0:13:14]} (24... dxc4 25. Qc2 $17) (24... d4 $1 $19 {[%cal Rd4e3] has better winning chances.} 25. Nf5 Qd7 (25... Bxc4 26. Qc2 $17) (25... Qb7 $2 26. g5 $17)) 25. Nf5 {[%emt 0:04:15] White does not recover from this.} (25. Nc2 $17 dxc4 26. Qe2) 25... dxc4 {[%emt 0:01:13]} (25... Rxc4 26. Bxg5 (26. Nd6 Rxd6 27. exd6 Bf6 $11) 26... hxg5 27. Nd6 Rxd6 28. exd6 $11) 26. Qc2 {[%emt 0:01:29] Bxg5 would now be deadly.} Bxc1 {[%emt 0:01:24]} 27. Rxc1 {[%emt 0:00:31]} (27. Rxd8+ Qxd8 28. Qxc1) 27... Rd3 $19 {[%emt 0:01:09]} 28. Nd6 {[%emt 0:00:31]} Qb8 {[%emt 0:01:47]} 29. Rcd1 {[%emt 0:00:30]} (29. Re2 $142) 29... Rxh3 {[%emt 0:05:12]} 30. Kg2 {[%emt 0:00:30]} Rd3 {[%emt 0:00:27]} 31. Rxd3 {[%emt 0:00:31]} cxd3 {[%emt 0:00:19]} 32. Qxd3 {[%emt 0:00:11]} Rxg4+ {[%emt 0:00:30]} 33. Kf1 {[%emt 0:00:28]} Qb4 {[%emt 0:02:08][%cal Og4g1] And now ...Rg1+! would win.} 34. a3 {[%emt 0:00:51]} (34. Qc3 $142) 34... Qf4 {[%emt 0:01:17]} (34... Rg1+ $142 35. Kxg1 Qxe1+ 36. Qf1 Qxe5) 35. Re4 {[%emt 0:00:27]} Qc1+ {[%emt 0:00:21]} 36. Re1 {[%emt 0:00:11] [#]} Rg1+ $3 {[%emt 0:00:41][%mdl 512]} 37. Kxg1 {[%emt 0:00:03]} Qxe1+ {[%emt 0:00:03][%mdl 4096] Endgame. KQB-KQN} 38. Kg2 {[%emt 0:01:11]} Bd5+ {[%emt 0:01:21]} 39. Kh3 {[%emt 0:00:38]} Qxe5 {[%emt 0:01:09]} (39... Qxf2 $142 40. Qxd5 cxd5 41. Nb7 Qxb2 42. Nd6 Qxa3+ (42... Qxe5 $2 43. Nxf7+ Kh7 44. Nxe5 $19) 43. Kg2 Qe3 (43... Kg8 44. e6 Qb2+ 45. Kg3 Qe5+ 46. Kg2 Qxd6 47. exf7+ Kf8 48. Kf3 a3 49. Kf2 a2 50. Ke3 a1=Q 51. Kf3 Qf1+ 52. Kg4 Qg6+ 53. Kh4 Qh1#) 44. Nxf7+ Kg8 45. Nd8 Qg5+ (45... Qxe5 {leads to mate.} 46. Kh3 Qe3+ 47. Kh4 a3 48. Kg4 a2 49. Nc6 a1=Q 50. Ne7+ Qxe7 51. Kg3 Qf1 52. Kh2 Qh4#) 46. Kh3 Qxd8 47. Kg3 a3 48. Kg2 a2 49. Kh1 a1=Q+ (49... a1=B {is a self mate.} 50. Kg2 Qg5+ 51. Kf3 Bxe5 52. Ke2 Qg2+ 53. Ke3 g5 54. Kd3 c4+ 55. Ke3 d4#) 50. Kg2 Qg5+ (50... Qxe5 {gets mated.} 51. Kg1 Qe1+ 52. Kg2 Qg5+ 53. Kh3 Qeh4#) 51. Kh2 Qag1+ 52. Kh3 Qh5#) 40. Qg3 {[%emt 0:00:29] Black is clearly winning.} Qh5+ {[%emt 0:00:44]} 41. Qh4 {[%emt 0:30:18]} Qf3+ {[%emt 0:04:03]} 42. Qg3 {[%emt 0:00:00]} Qh1+ {[%emt 0:00:20]} 43. Kg4 {[%emt 0:00:00]} Be6+ {[%emt 0:00:17]} 44. Kf4 {[%emt 0:00:00]} Qd5 {[%emt 0:00:43] Weighted Error Value: White=0.73/Black=0.40.  Loses game:     	White=1     	---        Mistake:       	White=4     	Black=3      Inaccurate:     	White=4     	Black=2      OK:         	White=7     	Black=13     Best:        	---       	Black=1} 0-1

[Event "Smuk Skak GM Tournament 2024"]
[Site "Skanderborg"]
[Date "2024.08.17"]
[Round "1.4"]
[White "Kosakowski, Jakub"]
[Black "Kanov, Nikola"]
[Result "1/2-1/2"]
[ECO "C07"]
[WhiteElo "2501"]
[BlackElo "2414"]
[Annotator "TA"]
[PlyCount "138"]
[EventDate "2024.08.11"]
[EventType "tourn"]
[EventCountry "DEN"]
[SourceTitle "playchess.com"]
[Source "ChessBase"]
[SourceQuality "1"]
[TimeControl "40/5400+30:1800+30"]

{[%evp 15,138,11,8,12,8,6,16,13,3,-12,0,0,6,0,7,0,0,0,118,116,115,122,112,0,116,86,84,83,70,95,97,86,87,83,116,107,167,105,108,111,111,97,97,34,75,81,98,133,177,219,204,210,216,210,233,132,132,132,132,132,129,116,106,48,61,17,17,17,50,50,50,50,50,50,50,50,57,57,57,57,57,0,73,17,17,17,17,17,17,17,24,17,28,17,17,15,15,16,16,16,16,16,16,16,16,16,16,14,14,0,16,13,13,12,12,12,12,12,12,12,12,8,8,-8,-8]} 1. e4 {[%emt 0:00:09]} e6 {[%emt 0:00:21]} 2. d4 {[%emt 0:00:16]} d5 {[%emt 0:00:12]} 3. Nd2 {[%emt 0:01:23]} c5 {[%emt 0:00:24]} 4. Ngf3 {[%emt 0:01:26]} cxd4 {[%emt 0:00:18]} 5. Nxd4 {[%emt 0:03:07]} Nc6 {[%emt 0:00:24]} 6. Bb5 {[%emt 0:00:57]} Bd7 {[%emt 0:00:08]} 7. Nxc6 {[%emt 0:00:09]} bxc6 {[%emt 0:00:04]} 8. Bd3 {[%emt 0:00:08]} Qc7 {[%emt 0:00:29]} 9. Qe2 {[%emt 0:02:29]} Ne7 {[%emt 0:00:29][%cal Bg8e7,Be7g6,Bg6e5,Be5d3][%mdl 32]} 10. O-O {[%emt 0:10:20]} Ng6 {[%emt 0:03:24]} 11. g3 {[%emt 0:04:05]} Ne5 {[%emt 0:16:02]} 12. Re1 {[%emt 0:15:32]} Nxd3 {[%emt 0:08:04]} 13. Qxd3 {[%emt 0:00:18]} Be7 {[%emt 0:02:18]} 14. c4 {[%emt 0:04:37]} Rd8 {[%emt 0:11:54]} 15. exd5 {[%emt 0:02:59]} cxd5 {[%emt 0:00:35]} 16. cxd5 {[%emt 0:00:08]} Bc6 {[%emt 0:08:55]} 17. Qc3 $16 {[%emt 0:03:56]} Rxd5 {[%emt 0:00:23]} 18. Qxg7 {[%emt 0:01:02]} Rf8 {[%emt 0:00:15]} 19. Nf3 {[%emt 0:08:59]} (19. Qxh7 $2 Rf5 20. Qh3 Qb6 $19) (19. Ne4 $1 $16 {[%cal Oc1g5] Strongly threatening Bg5!} Qe5 20. Bh6 (20. Qxh7 $2 Rh8 $19)) 19... Bb7 {[%emt 0:08:51]} (19... Rf5 $1 $11 20. Nd4 Ba8 21. Nxf5 Qc6) 20. Bg5 $36 {[%emt 0:10:41][%mdl 2048] White has strong initiative.} (20. Qxh7 $2 Rf5 $19) 20... Rxg5 {[%emt 0:31:30]} 21. Nxg5 {[%emt 0:00:11]} Bxg5 {[%emt 0:00:32] A strong pair of Bishops.} 22. Rxe6+ {[%emt 0:06:53]} (22. Qxg5 Qc6 23. f3 Qxf3 24. Qb5+ Ke7 25. Qb4+ Ke8 26. Qb5+ Ke7 27. Qb4+ Ke8 28. Qb5+ $11) 22... Be7 {[%emt 0:00:11]} 23. Re3 {[%emt 0:00:22] Some like it hot. White is much more active.} Qc6 {[%emt 0:02:15]} 24. f3 $1 {[%emt 0:07:27][%cal Og7e5]} (24. Rxe7+ $6 Kxe7 25. Re1+ Kd7 26. Qg4+ (26. Rd1+ $2 Kc7 $19) 26... Kd8 27. Rd1+ Ke7 (27... Kc7 $2 28. Qf4+ Kc8 29. Rc1 $18) 28. Qh4+ (28. Qb4+ $2 Ke6 $19) (28. Qg5+ f6 $17) 28... f6 29. Qxh7+ Rf7 30. Re1+ Kd6 31. Rd1+ Ke7 32. Re1+ Kd6 33. Rd1+ Ke6 34. Re1+ Kd6 $11) 24... Qc5 {[%emt 0:00:49]} 25. Rae1 {[%emt 0:01:19] And now b4 would win.} Bd5 {[%emt 0:00:35]} (25... Bc8 $16 {is a better defense.}) 26. Kg2 {[%emt 0:01:00]} (26. Qxh7 Qd4 27. Qc2 Be6 $18) (26. Qg4 $18 Be6 27. Qa4+ Kd8 28. Kh1) 26... Be6 {[%emt 0:00:28]} 27. Qxh7 {[%emt 0:01:25]} Qd4 {[%emt 0:01:33]} 28. Qc2 {[%emt 0:06:01] aiming for Rd3.} Rh8 {[%emt 0:00:36]} 29. Rd3 {[%emt 0:05:33]} (29. Rxe6 $16 fxe6 30. Qc8+ (30. Rxe6 Qd7 $16) 30... Bd8 31. Qxe6+ (31. Rxe6+ Kf8 $16) 31... Kf8 32. h4 Qxb2+ 33. Re2) 29... Qf6 {[%emt 0:00:46][%cal Oh8h5] [#]} 30. Rb3 $1 {[%emt 0:00:55]} Kf8 {[%emt 0:00:55][%cal Be8f8,Bf8g7,Bg7h8][%mdl 32]} (30... Bh3+ 31. Kg1) 31. Rb8+ {[%emt 0:00:03]} Kg7 {[%emt 0:00:38]} 32. Rxh8 {[%emt 0:00:05]} Kxh8 {[%emt 0:00:04]} 33. Qc3 {[%emt 0:01:43]} Qxc3 {[%emt 0:00:40]} 34. bxc3 {[%emt 0:00:04]} Bf6 {[%emt 0:00:04] [#]} 35. Rc1 {[%emt 0:01:06]} (35. Rxe6 $1 $18 fxe6 36. c4) 35... Bxa2 {[%emt 0:00:42]} 36. Ra1 {[%emt 0:00:11]} Be6 {[%emt 0:00:16]} 37. Rxa7 {[%emt 0:00:06]} Bxc3 {[%emt 0:00:04]} 38. g4 {[%emt 0:01:36]} Kg7 {[%emt 0:00:43]} 39. h3 {[%emt 0:00:23]} (39. h4 $16) 39... Kg6 {[%emt 0:02:24]} 40. f4 {[%emt 0:00:51] Threatens to win with f5+.} Bd5+ {[%emt 0:00:29]} 41. Kh2 {[%emt 0:00:46]} f5 {[%emt 0:09:36]} 42. Ra6+ {[%emt 0:04:42]} Kg7 {[%emt 0:02:22]} 43. Rd6 {[%emt 0:03:13]} Be4 {[%emt 0:01:37]} 44. Rd7+ {[%emt 0:01:39]} Kg6 {[%emt 0:01:00]} 45. Rd1 {[%emt 0:00:43]} Bb4 {[%emt 0:04:38]} 46. Kg3 {[%emt 0:00:18]} Bc2 {[%emt 0:01:32]} 47. Ra1 {[%emt 0:00:56]} Bd3 {[%emt 0:00:36]} 48. Rd1 {[%emt 0:03:17]} Bc2 {[%emt 0:00:21]} 49. Rd4 {[%emt 0:00:56]} (49. Rf1 $16) 49... Be1+ $11 {[%emt 0:01:03]} 50. Kf3 {[%emt 0:00:43]} Be4+ {[%emt 0:01:03]} 51. Ke2 {[%emt 0:01:59]} Bg3 {[%emt 0:04:29]} 52. Ke3 {[%emt 0:00:57]} Bh2 {[%emt 0:01:13]} 53. Rd6+ {[%emt 0:03:02]} Kg7 {[%emt 0:00:23]} 54. Rd1 {[%emt 0:02:30]} Bg2 {[%emt 0:00:59] The position is equal.} 55. g5 {[%emt 0:03:12][%cal Bg4g5,Bg5g6][%mdl 32] h4 is the strong threat.} Be4 {[%emt 0:01:26]} 56. h4 {[%emt 0:00:22]} Kg6 {[%emt 0:00:55]} 57. Rd6+ {[%emt 0:08:52]} Kh5 {[%emt 0:00:06]} 58. g6 {[%emt 0:00:10]} Bg1+ {[%emt 0:00:56]} 59. Ke2 {[%emt 0:00:16] g7 would kill now.} Kh6 {[%emt 0:00:20] [#]} 60. h5 $1 {[%emt 0:01:08] White threatens Rd7 and mate.} Bh2 $1 {[%emt 0:00:20]} 61. Ke3 {[%emt 0:00:26]} Bg1+ {[%emt 0:00:01]} 62. Ke2 {[%emt 0:00:02] Intending Rd7 and mate.} Bh2 $1 {[%emt 0:00:05]} 63. Rd8 {[%emt 0:01:01]} Bxf4 {[%emt 0:01:00]} 64. Rh8+ {[%emt 0:00:03]} Kg7 {[%emt 0:00:37]} 65. Rh7+ {[%emt 0:00:04]} Kg8 {[%emt 0:00:17]} 66. h6 {[%emt 0:01:42]} Bxh6 {[%emt 0:00:21]} 67. Rxh6 {[%emt 0:00:05]} Kg7 {[%emt 0:00:05]} 68. Rh5 {[%emt 0:00:04]} Kxg6 {[%emt 0:00:05]} 69. Rxf5 {[%emt 0:00:04]} Kxf5 {[%emt 0:00:05] Blacks defense is rewarded with a draw.   Weighted Error Value: White=0.14 (very precise) /Black=0.15 (very precise) .  Mistake:       	White=6     	Black=3      Inaccurate:     	White=1     	Black=4      OK:         	White=24    	Black=24     Best:        	White=3     	Black=10     Strong:       	White=1     	Black=2      Brilliant:      	White=1     	---} 1/2-1/2

[Event "Smuk Skak GM Tournament 2024"]
[Site "Skanderborg"]
[Date "2024.08.17"]
[Round "1.5"]
[White "Olsen, Filip Boe"]
[Black "Licznerski, Lukasz"]
[Result "1/2-1/2"]
[ECO "B30"]
[WhiteElo "2431"]
[BlackElo "2427"]
[Annotator "RC"]
[PlyCount "168"]
[EventDate "2024.08.11"]
[EventType "tourn"]
[EventCountry "DEN"]
[SourceTitle "playchess.com"]
[Source "ChessBase"]
[SourceQuality "1"]
[TimeControl "40/5400+30:1800+30"]

1. e4 {[%emt 0:00:07]} c5 {[%emt 0:01:13]} 2. Nf3 {[%emt 0:00:11]} Nc6 {[%emt 0:00:09]} 3. Bc4 {[%emt 0:00:23]} Nf6 {[%emt 0:02:09]} 4. e5 {[%emt 0:00:39]} d5 {[%emt 0:00:48]} 5. Bb5 {[%emt 0:00:17]} Nd7 {[%emt 0:03:23]} 6. Bxc6 {[%emt 0:00:43]} bxc6 {[%emt 0:00:02]} 7. d3 {[%emt 0:00:28]} g6 {[%emt 0:00:57]} 8. O-O {[%emt 0:05:21]} Bg7 {[%emt 0:00:15]} 9. Re1 {[%emt 0:03:37]} O-O {[%emt 0:00:24]} 10. Nc3 {[%emt 0:01:49]} f6 {[%emt 0:11:57]} 11. exf6 {[%emt 0:06:43]} Nxf6 {[%emt 0:00:02]} 12. h3 {[%emt 0:13:58]} Qd6 {[%emt 0:00:46]} 13. Bg5 {[%emt 0:04:01]} Re8 {[%emt 0:01:41]} 14. Ne5 {[%emt 0:11:20]} Nd7 15. Nxd7 {[%emt 0:03:13]} Bxd7 {[%emt 0:06:13]} 16. Qd2 {[%emt 0:03:54]} Rab8 {[%emt 0:06:39]} 17. Rab1 {[%emt 0:02:21]} e5 {[%emt 0:02:32]} 18. b3 {[%emt 0:10:55]} Rb7 {[%emt 0:02:03]} 19. Re2 {[%emt 0:02:26]} Bc8 {[%emt 0:15:56]} 20. Rbe1 {[%emt 0:01:31]} Qf8 {[%emt 0:10:25]} 21. Na4 {[%emt 0:02:08]} c4 {[%emt 0:05:14]} 22. dxc4 {[%emt 0:02:13]} dxc4 {[%emt 0:01:42]} 23. Qc3 {[%emt 0:03:17]} Be6 {[%emt 0:03:05]} 24. Be3 {[%emt 0:01:09]} Rc7 {[%emt 0:03:12]} 25. Nc5 {[%emt 0:02:17]} Qf7 {[%emt 0:01:04]} 26. Nxe6 {[%emt 0:06:39]} Qxe6 {[%emt 0:00:01]} 27. Bd4 {[%emt 0:01:10]} Rce7 {[%emt 0:07:49]} 28. f4 {[%emt 0:01:18]} e4 {[%emt 0:03:23]} 29. Bxg7 {[%emt 0:01:22]} Rxg7 {[%emt 0:00:06]} 30. Qxc4 {[%emt 0:05:34]} Qxc4 {[%emt 0:00:05]} 31. bxc4 {[%emt 0:00:09]} Rb7 {[%emt 0:00:34]} 32. c3 {[%emt 0:01:32]} Rbe7 {[%emt 0:05:55]} 33. Kf2 {[%emt 0:00:31]} Kf7 {[%emt 0:00:01]} 34. Rd1 {[%emt 0:00:34]} Rb8 {[%emt 0:00:33]} 35. Rd6 {[%emt 0:00:48]} e3+ {[%emt 0:02:22]} 36. Kf3 {[%emt 0:00:22]} Rb1 {[%emt 0:00:58]} 37. Rxe3 {[%emt 0:02:10]} Rf1+ {[%emt 0:00:05]} 38. Ke2 {[%emt 0:00:01]} Re1+ {[%emt 0:00:04]} 39. Kxe1 {[%emt 0:00:10]} Rxe3+ {[%emt 0:00:04]} 40. Kf2 {[%emt 0:01:24]} Rxc3 {[%emt 0:00:02]} 41. Rxc6 {[%emt 0:30:40]} a5 {[%emt 0:16:45]} 42. Rc7+ {[%emt 0:00:00]} Kf6 {[%emt 0:00:44]} 43. Rxh7 {[%emt 0:00:00]} Rxc4 {[%emt 0:00:02]} 44. Kf3 {[%emt 0:00:00]} Ra4 {[%emt 0:00:55]} 45. Ra7 {[%emt 0:00:00]} Rxa2 {[%emt 0:00:08]} 46. Ra6+ {[%emt 0:00:00]} Kg7 {[%emt 0:00:28]} 47. g3 {[%emt 0:00:00]} Ra3+ {[%emt 0:05:55]} 48. Kg4 {[%emt 0:00:00]} Kh6 {[%emt 0:00:01]} 49. Kh4 {[%emt 0:00:00]} Ra4 {[%emt 0:00:10]} 50. Kg4 {[%emt 0:00:00]} Ra3 {[%emt 0:00:01]} 51. f5 {[%emt 0:00:00]} Ra4+ {[%emt 0:00:02]} 52. Kf3 {[%emt 0:00:00]} Kg5 {[%emt 0:00:10]} 53. f6 {[%emt 0:00:05]} Rb4 {[%emt 0:03:06]} 54. f7 {[%emt 0:00:50]} Rb8 {[%emt 0:00:12]} 55. h4+ {[%emt 0:06:08]} Kh6 {[%emt 0:00:21]} 56. Rxa5 {[%emt 0:00:26]} Kg7 {[%emt 0:00:11]} 57. Ra7 {[%emt 0:01:06]} Rb4 {[%emt 0:00:40]} 58. Rc7 {[%emt 0:00:28]} Ra4 {[%emt 0:01:38]} 59. Re7 {[%emt 0:00:13]} Kf8 {[%emt 0:00:17]} 60. Rd7 {[%emt 0:00:02]} Kg7 {[%emt 0:00:25]} 61. Rc7 {[%emt 0:00:28]} Rb4 {[%emt 0:00:09]} 62. Ra7 {[%emt 0:00:01]} Rc4 {[%emt 0:00:14]} 63. Rb7 {[%emt 0:00:00]} Ra4 {[%emt 0:00:05]} 64. Re7 {[%emt 0:00:04]} Kf8 {[%emt 0:00:33]} 65. Rc7 {[%emt 0:00:01]} Kg7 {[%emt 0:00:22]} 66. Rd7 {[%emt 0:00:01]} Rb4 {[%emt 0:01:23]} 67. g4 {[%emt 0:03:18]} Ra4 {[%emt 0:00:07]} 68. Kg3 {[%emt 0:00:05]} Ra3+ {[%emt 0:02:01]} 69. Kf4 {[%emt 0:00:01]} Ra4+ {[%emt 0:00:01]} 70. Kf3 {[%emt 0:00:15]} Ra3+ {[%emt 0:00:03]} 71. Ke4 {[%emt 0:00:04]} Ra4+ {[%emt 0:00:20]} 72. Rd4 {[%emt 0:00:01]} Ra5 {[%emt 0:01:04]} 73. g5 {[%emt 0:00:58]} Kxf7 {[%emt 0:01:59]} 74. Rd5 {[%emt 0:00:38]} Ra1 {[%emt 0:03:07]} 75. Rc5 {[%emt 0:00:24]} Ra4+ {[%emt 0:01:04]} 76. Ke5 {[%emt 0:00:03]} Rxh4 {[%emt 0:00:05]} 77. Rc7+ {[%emt 0:00:13]} Kg8 {[%emt 0:00:02]} 78. Kf6 {[%emt 0:00:09]} Ra4 {[%emt 0:01:03]} 79. Re7 {[%emt 0:00:22]} Ra6+ {[%emt 0:00:46]} 80. Re6 {[%emt 0:00:00]} Ra8 {[%emt 0:00:14]} 81. Kxg6 {[%emt 0:00:07]} Rb8 {[%emt 0:00:13]} 82. Kh6 {[%emt 0:00:44]} Ra8 {[%emt 0:00:06]} 83. g6 {[%emt 0:00:13]} Rb8 {[%emt 0:00:08]} 84. Rf6 {[%emt 0:02:28]} Rb1 {[%emt 0:00:42]} 1/2-1/2